Cogmind - Beta 17 @@@ ROGUE MODE // 2026.07.06 @ 17:48:19 Player: Minty Result: Destroyed by Y-72 Warden with Railgun Performance ------------- Evolutions (8) 4000 Regions Visited (12) 2400 Robots Destroyed (284) 1420 Value Destroyed (14801) 14801 Prototype IDs (73) 1460 Alien Tech Used (0) 0 Bonus (20615) 20615 TOTAL SCORE: 44696 Bonus ------- Triggered High Security 500 High Alert Combat Kills 4526 Follower Combat Kills 7 Prayed to X0-1V1 5000 Major X0-1V1 Interference 5100 Registered with UFD 300 Met Optimus in HQ 500 Met Warlord at Base 500 MAIN.C Attacked Warlord 500 Warlord Defense Kills 4256 Scanned by Researcher 500 Friendly Fire -1074 Cogmind --------- Core Integrity 0/1725 Matter 5/300 Energy 187/1500 System Corruption 11% Temperature Cool (2) Movement Flying (37) Location -2/Research Parts ------- > --- POWER (3) -------- (None) > --- PROPULSION (7) --- Q-thruster Q-thruster > --- UTILITY (11) ----- Advanced Signal Interpreter X0-1V1's Piety Tracker > --- WEAPON (3) ------- (None) > --- INVENTORY (5) ---- 2N-1CE's Frost Array Heavy Regenerative Plating AEGIS Remote Shield Improved Matter Neutralizer Peak State ------------ > --- POWER ------------ Micro Antimatter Reactor Quantum Reactor Light Quantum Reactor > --- PROPULSION ------- Advanced Myomer Leg Biometal Leg Biometal Leg Biometal Leg Biometal Leg Biometal Leg Centrium Leg > --- UTILITY ---------- 2N-1CE's Frost Array Large Storage Unit Spectral Analyzer Advanced Target Analyzer Expert System Light Regenerative Plating Light Regenerative Plating SHELL Armor AEGIS Remote Shield > --- WEAPON ----------- Hypervelocity Multirail Tactical Quantum Warhead Vibroblade > --- INVENTORY -------- Light Quantum Reactor Heavy Regenerative Plating Advanced Focal Shield Improved System Shield Heavy Proton Cannon Improved Matter Neutralizer Improved Matter Neutralizer Enhanced Nova Cannon Neutron Missile Launcher Neutron Missile Launcher Chain Missile Launcher [Rating: 209] Favorites ----------- Power Reinforced Fission Core Engine Subdweller Power Source Power Core Reinforced Fission Core Reactor Antimatter Reactor Propulsion Advanced Myomer Leg Treads Spiked Treads Leg Advanced Myomer Leg Wheel Subdweller Monowheel Hover Unit Hover Unit Flight Unit Improved Flight Unit Utility Expert System Device X0-1V1's Piety Tracker Storage Large Storage Unit Processor Expert System Hackware Improved System Shield Protection Makeshift Heavy Armor Plating Weapon Junk Cannon Energy Gun Spread Laser Energy Cannon Cooled Plasma Cannon Ballistic Gun Coil Gun Ballistic Cannon Heavy Autocannon Launcher Chain Missile Launcher Special Weapon Junk Cannon Impact Weapon Hammer Slashing Weapon Vibroblade Build | -11 -10 -10 -7 -5 -4 -4 -4 -4 -3 -3 -3 -2 ------- Run | Yrd Mat Sub Scr Fac Fac Upp Upp War Pro Res Tes Res Slots Evolved 16 | . . . . 10 2 . . . . 2 . 2 Power 1 | . . . . . . . . . . . . 1 Propulsion 5 | . . . . 3 1 . . . . 1 . . Utility 9 | . . . . 6 1 . . . . 1 . 1 Weapon 1 | . . . . 1 . . . . . . . . Parts Attached 156 | . 12 22 11 23 2 2 7 15 1 12 26 23 Power 22 | . 3 4 3 2 . 1 . 1 . 1 4 3 Engine 11 | . 3 4 3 . . . . . . . 1 . Core 3 | . . . . 2 . . . . . . 1 . Reactor 8 | . . . . . . 1 . 1 . 1 2 3 Propulsion 45 | . 4 6 5 6 . 1 . 2 . 2 7 12 Treads 5 | . . 1 . 3 . . . . . . . 1 Leg 26 | . . . 5 3 . 1 . 2 . 2 7 6 Wheel 5 | . . 5 . . . . . . . . . . Hover 5 | . 4 . . . . . . . . . . 1 Flight 4 | . . . . . . . . . . . . 4 Utility 57 | . 2 5 2 14 2 . 3 5 1 6 9 8 Device 24 | . 2 4 2 2 1 . 1 1 1 3 4 3 Storage 2 | . . . . . . . 1 . . 1 . . Processor 16 | . . . . 9 1 . 1 . . 2 1 2 Hackware 4 | . . . . 1 . . . . . . . 3 Protection 11 | . . 1 . 2 . . . 4 . . 4 . Artifact . | . . . . . . . . . . . . . Weapon 32 | . 3 7 1 1 . . 4 7 . 3 6 . Energy Gun 7 | . 1 3 . . . . . 1 . . 2 . Energy Cannon 8 | . 1 . . 1 . . 1 2 . 2 1 . Ballistic Gun 8 | . . 4 . . . . 3 . . . 1 . Ballistic Cannon 1 | . . . . . . . . 1 . . . . Launcher 5 | . . . . . . . . 2 . 1 2 . Special Weapon 1 | . . . 1 . . . . . . . . . Impact Weapon 1 | . 1 . . . . . . . . . . . Slashing Weapon 1 | . . . . . . . . 1 . . . . Piercing Weapon . | . . . . . . . . . . . . . Special Melee Weapon . | . . . . . . . . . . . . . Unidentified Prototypes 18 | . 1 . 1 . . . . . . 4 12 . Corrupted Parts 5 | . . . 1 3 . . . 1 . . . . System Corruption 26 | . . . 4 14 . . . 8 . . . . Parts Lost 65 | . 3 9 3 1 . . 1 2 3 6 8 29 Power 11 | . 1 1 . . . . . 1 1 . 3 4 Propulsion 24 | . 2 2 2 1 . . . . 1 . 4 12 Utility 19 | . . 3 1 . . . . 1 . 5 1 8 Weapon 11 | . . 3 . . . . 1 . 1 1 . 5 Highest Loss Streak 22 | . 3 2 2 1 . . 1 1 2 5 2 22 To Critical Strikes 3 | . . . . . . . 1 . 1 . 1 . Average Backups 7 | . 7 6 3 2 4 3 4 11 9 9 12 9 Power . | . 1 . . . . . . . 1 1 . . Propulsion . | . 2 . . . . . . . . . . . Utility 2 | . 1 1 1 . . . . 5 4 3 3 3 Weapon 4 | . 3 5 2 . 4 3 3 5 4 4 7 6 Tool/Special . | . . . . . . . . . . . . . Unused Backups 51 | . 12 6 2 2 2 5 3 8 . 2 5 4 Power 2 | . 2 . . . . . . . . . . . Propulsion 10 | . 6 2 . . . . . . . 1 1 . Utility 18 | . 1 1 . 2 . 4 1 5 . 1 2 1 Weapon 20 | . 3 3 2 . 2 1 2 3 . . 1 3 Tool/Special 1 | . . . . . . . . . . . 1 . Average Slot Usage (%) 75 | . 83 82 86 69 68 70 74 79 76 70 73 62 Engine 5 | . 10 12 23 4 . . . . . . . 1 Core 2 | . . . . 2 10 6 5 5 5 . . . Reactor 2 | . . . . . . 3 5 4 3 3 3 7 Treads 2 | . . 4 9 5 . . . . . . . 1 Leg 11 | . 7 . 5 8 15 15 15 15 14 12 23 14 Wheel 3 | . . 18 9 . . . . . . . . . Hover 1 | . 19 3 . . . . . . . . . . Device 10 | . 12 9 24 9 12 10 14 11 5 13 2 4 Storage 4 | . 14 9 . . . . 4 5 5 4 4 3 Processor 9 | . . . . 24 10 15 15 14 10 11 10 9 Protection 7 | . . 1 . 2 10 10 5 9 20 12 13 9 Energy Gun 2 | . 1 12 . . . . . . 5 . 1 . Energy Cannon 1 | . 1 . . 1 5 5 5 1 8 1 1 . Ballistic Gun 3 | . 4 5 4 . . . 2 10 . . 1 1 Special Weapon 2 | . . . 9 5 5 5 2 . . . . . Slashing Weapon 1 | . . . . . . . . 1 . 3 3 3 Peak Build Rating 209 | . 19 34 42 127 140 144 150 152 147 174 196 209 Average Rating 105 | . 6 14 35 93 137 142 145 143 142 156 182 145 On Entrance 95 | 6 6 19 34 36 127 140 144 144 147 127 163 148 Avg Prop Armor Cover (%) 12 | . . 9 12 21 . . . . . . 3 6 Naked Turns 11 | . . . . . . . . . . . . 11 Heaviest Build 153 | 13 16 36 32 100 101 106 114 140 133 119 153 144 Greatest Support 200 | 20 20 30 38 113 128 138 138 145 145 170 200 200 Greatest Overweight (x) 8 | . 2 2 8 1 . . . 1 . . 1 1 Average Overweight (x) . | . . . . . . . . . . . . . Largest Inventory Capacity 15 | . 8 8 5 5 5 5 15 15 15 15 15 15 Average Capacity 10 | . 8 7 5 5 5 5 13 15 15 15 15 12 Most Carried 15 | . 8 8 5 5 5 5 12 15 13 15 15 15 Average Carried 8 | . 7 6 4 2 4 4 5 14 13 12 14 11 Final Capacity 15 | 8 8 5 5 5 5 5 15 15 15 15 15 5 Final Carried 15 | 6 8 5 5 5 5 5 9 13 13 11 15 5 Transmogrified Parts 1 | . . . 1 . . . . . . . . . Integrity Recovered 3 | . . . 3 . . . . . . . . . Class Distribution -------------------- 51% | Mutant 12% | Tank 12% | Scavenger-Mutant 10% | Derelict-Tank 4% | Scavenger-Tank 3% | Scavenger-Gunner Dominant Class ---------------- Mutant | -10/Materials Mutant | -10/Subcaves Mutant | -7/Scraptown Mutant | -5/Factory Tank | -4/Factory Tank | -4/Upper Caves Derelict-Tank | -4/Upper Caves Derelict-Tank | -4/Warlord Scavenger-Tank | -3/Proximity Caves Scavenger-Mutant | -3/Research Mutant | -3/Testing Mutant | -2/Research Resources | -11 -10 -10 -7 -5 -4 -4 -4 -4 -3 -3 -3 -2 ----------- Run | Yrd Mat Sub Scr Fac Fac Upp Upp War Pro Res Tes Res Matter Collected 8180 | 200 175 529 815 278 10 423 457 1324 304 315 2720 630 Remotely . | . . . . . . . . . . . . . Salvage Created 10796 | . 629 508 428 665 241 565 875 1149 247 533 3916 1040 Parts 409 | . 26 32 10 16 5 19 21 38 11 22 175 34 Haulers Intercepted 4 | . 2 . . . 1 . . . . 1 . . Recyclers Shooed 4 | . 1 . . . 1 . . . . . 1 1 Parts Field Recycled . | . . . . . . . . . . . . . Retrieved Matter . | . . . . . . . . . . . . . Parts Self-Destructed 53 | . . 19 4 . . 9 10 . 11 . . . Prevented 14 | . . . . . . 3 11 . . . . . Parts Restored . | . . . . . . . . . . . . . Kills | -11 -10 -10 -7 -5 -4 -4 -4 -4 -3 -3 -3 -2 ------- Run | Yrd Mat Sub Scr Fac Fac Upp Upp War Pro Res Tes Res Combat Hostiles Destroyed 232 | . 12 20 7 11 2 11 16 34 6 21 66 26 Melee 13 | . 3 . . . . . . . . 1 5 4 Guns 67 | . 5 20 . . . . 4 2 1 . 28 7 Cannons 47 | . 1 . . 4 2 8 5 9 5 2 10 1 AOE 76 | . . . . . . . . 23 . 18 21 14 Classes Destroyed 28 | . 8 3 2 2 . 1 1 6 . 1 2 2 Worker 17 | . 1 . . . . . . . . 7 8 1 Builder 10 | . 2 . . . . . . . . 1 7 . Tunneler 2 | . 2 . . . . . . . . . . . Hauler 4 | . 2 . . . 1 . . . . 1 . . Recycler 3 | . 1 . . . . . . . . . 1 1 Mechanic 2 | . . . . . . . . 1 . . 1 . Operator 4 | . 1 . . . . . . . . . 2 1 Drone 2 | . . . . . . . . . . . 1 1 Swarmer 39 | . 6 6 . . . 4 6 5 . . 8 4 Saboteur 4 | . . . . . . . . 2 . . . 2 Grunt 98 | . 6 2 . 7 1 5 7 20 2 8 33 7 Brawler 6 | . . . . . . . . 3 . . 3 . Duelist 1 | . . . . . . 1 . . . . . . Protector 4 | . . . . . . . . . . 1 3 . Researcher 11 | . . . . . . . . . . . 11 . Sentry 6 | . . . . 1 1 1 1 . . . . 2 Demolisher 1 | . . . . . . . . 1 . . . . Specialist 5 | . . . . 2 . . . . . 3 . . Hunter 24 | . . . . . . . 2 . 2 2 12 6 Programmer 18 | . . . . . . . . 1 2 7 6 2 Heavy 2 | . . 1 . 1 . . . . . . . . Behemoth 1 | . . . . . . . . . . . . 1 Striker 1 | . . . . . . . . . . . . 1 Executioner 2 | . . . . . . . . 2 . . . . Artisan 1 | . . 1 . . . . . . . . . . Subdweller 12 | . . 12 . . . . . . . . . . Federalist 1 | . . . 1 . . . . . . . . . Scrapper 4 | . . . 4 . . . . . . . . . Decomposer 1 | . . . . . . . 1 . . . . . Thug 2 | . . . 2 . . . . . . . . . Best Kill Streak 18 | . 6 4 2 3 2 4 7 16 2 18 18 11 Combat Bots Only 15 | . 4 4 2 3 1 4 7 15 2 10 14 10 Max Kills in Single Turn 9 | . 1 1 1 1 1 1 2 5 1 9 5 5 Gunslinging . | . . . . . . . . . . . . . Exploded 6 | . . . . . . . . 5 . 6 4 5 Melee 1 | . 1 . . . . . . . . 1 1 1 Uniques/NPCs Destroyed . | . . . . . . . . . . . . . Combat | -11 -10 -10 -7 -5 -4 -4 -4 -4 -3 -3 -3 -2 -------- Run | Yrd Mat Sub Scr Fac Fac Upp Upp War Pro Res Tes Res Hostile Shots Fired 2012 | . 82 136 32 65 12 60 131 166 58 139 510 621 Missed 671 | . 31 51 8 17 4 19 30 58 18 53 151 231 Hits 1341 | . 51 85 24 48 8 41 101 108 40 86 359 390 Melee 65 | . . . . . . 2 . 1 . . 45 17 Projectile 1276 | . 51 85 24 48 8 39 101 107 40 86 314 373 AOE 21 | . . . . . . . . 14 . . 7 . Critical Strikes 67 | . . 2 4 . . 6 3 6 4 5 20 17 Part Disruptions 5 | . . . . . . . . . . 2 3 . Damage Taken 24259 | . 505 1474 450 698 130 365 942 2380 662 1743 7163 7747 Core 2952 | . 136 255 64 28 8 55 37 289 . 38 294 1748 Absorbed by Shields 4828 | . . . . 104 64 312 776 728 24 80 . 2740 Reduced by Siege Mode 15 | . . . . . . . . . . . . 15 Ignored by Resistances 1337 | . . . . 65 28 133 122 . . 112 199 678 Regen/Repaired (Parts) 5316 | . . . . . . . . 93 . . 2979 2244 Core Remaining (%) 87 | 100 . . 74 97 . . . . 89 . 78 . Volleys Fired 522 | . 26 112 23 28 14 24 49 35 16 15 141 39 Largest 3 | . 2 2 1 2 2 1 3 3 3 2 3 2 Hottest 238 | . 80 130 . 35 105 105 145 195 111 238 226 160 Shots Fired 678 | . 52 152 23 31 18 24 63 69 24 21 160 41 Gun 351 | . 38 152 . . . . 12 29 6 3 81 30 Cannon 197 | . 14 . . 7 10 14 29 33 18 7 65 . Launcher 43 | . . . . . . . . 7 . 11 14 11 Special 87 | . . . 23 24 8 10 22 . . . . . Kinetic 264 | . 26 75 . . . . 12 21 . . 100 30 Thermal 202 | . 14 77 . 7 10 14 24 32 10 9 5 . Explosive 43 | . . . . . . . . 7 . 11 14 11 Electromagnetic 51 | . 12 . . . . . 5 . . . 34 . Impact 87 | . . . 23 24 8 10 22 . . . . . Entropic 31 | . . . . . . . . 9 14 1 7 . Robot Hit Streak 26 | . 13 26 4 10 9 5 12 6 4 8 8 18 Robot Miss Streak 7 | . 3 7 2 2 2 2 4 7 2 7 7 4 Penetration Max 2 | . . . . . . . . . . . 2 . Secondary Targets 4 | . . 2 . . . . 1 1 . . . . Max Gunslinging Chain 1 | . . 1 . . . . 1 1 . . . . Shots Hit Robots 530 | . 51 120 14 23 14 16 38 35 15 16 134 54 Core Hits 534 | . 15 106 . 5 5 8 11 80 7 70 157 70 Critical Kills 43 | . . 1 . . . 1 1 . . . 33 7 Critical Parts Destroyed 69 | . 4 . 4 4 . 1 6 . . . 42 8 Critical Strikes 144 | . 4 1 4 4 . 2 7 3 4 1 86 28 Burn 1 | . . . . . . . . . 1 . . . Destroy 102 | . . 1 . . . . . . . . 75 26 Blast 10 | . . . . . . . . 1 . . 8 1 Corrupt 1 | . . . . . . . . . . . 1 . Smash 21 | . 4 . 4 4 . 2 7 . . . . . Sever 3 | . . . . . . . . . . . 2 1 Sunder 6 | . . . . . . . . 2 3 1 . . Melee Attacks 117 | . 36 7 . . . . . 1 . 3 42 28 Impact 43 | . 36 7 . . . . . . . . . . Slashing 74 | . . . . . . . . 1 . 3 42 28 Piercing . | . . . . . . . . . . . . . Sneak Attacks 29 | . 10 1 . . . . . . . . 14 4 Combat Hostiles 3 | . 1 . . . . . . . . . 1 1 Follow-up Attacks . | . . . . . . . . . . . . . Damage Inflicted 39061 | . 1278 2079 850 1394 929 1080 2151 6052 906 4914 11872 5556 Guns 4722 | . 270 1965 . . . . 119 461 132 74 1353 348 Cannons 7849 | . 193 84 . 104 293 439 810 1572 763 273 3208 110 Explosions 17263 | . 23 . . . . . . 3973 . 4471 5014 3782 Melee 4551 | . 792 30 . . . . . 46 . 96 2297 1290 Ramming 51 | . . . . . . . 14 . 11 . . 26 Kinetic 5502 | . 230 824 . . . . 119 641 . . 3230 458 Thermal 4285 | . 216 1225 . 104 293 439 694 783 211 238 82 . Explosive 17240 | . . . . . . . . 3973 . 4471 5014 3782 Electromagnetic 1044 | . 40 . . . . . 116 . . . 888 . Impact 5447 | . 792 30 850 1290 636 641 1208 . . . . . Slashing 3729 | . . . . . . . . 46 . 96 2297 1290 Piercing . | . . . . . . . . . . . . . Entropic 1763 | . . . . . . . . 609 684 109 361 . Highest Corruption 25 | . . 14 4 14 . . . 8 10 7 25 11 Average Corruption 10 | . . 8 4 13 . . . 8 8 3 13 6 Corruption Purged . | . . . . . . . . . . . . . Corruption Blocked . | . . . . . . . . . . . . . Effects 108 | . . 1 5 13 . . . 3 21 2 55 8 Message Errors 27 | . . . . 5 . . . 2 5 . 12 3 Matter Fused 21 | . . . 2 3 . . . 1 4 . 10 1 Heat Flow Errors 20 | . . . 1 3 . . . . 3 2 9 2 Energy Discharges 11 | . . . 1 . . . . . 2 . 7 1 Parts Rejected 2 | . . . . . . . . . 1 . 1 . Data Loss (minor) 9 | . . 1 . . . . . . 1 . 6 1 Data Loss (major) 5 | . . . 1 1 . . . . 2 . 1 . Misfires 6 | . . . . 1 . . . . 3 . 2 . Alerts 1 | . . . . . . . . . . . 1 . Misdirections 1 | . . . . . . . . . . . 1 . Weapon Failures 5 | . . . . . . . . . . . 5 . Overload Shots 14 | . . . . . 2 5 6 . . 1 . . Overflow Damage 3888 | . 276 . 378 390 140 315 748 145 61 76 1011 348 Projectiles 2602 | . 9 . 378 390 140 315 740 115 61 . 359 95 Explosions 422 | . . . . . . . . 24 . 76 222 100 Melee 864 | . 267 . . . . . 8 6 . . 430 153 Knockbacks 39 | . 2 . 9 5 1 2 9 . . . 11 . Impact 27 | . 2 . 8 5 1 2 9 . . . . . Kinetic 8 | . . . . . . . . . . . 8 . Secondary 4 | . . . 1 . . . . . . . 3 . Self-Inflicted Damage 1054 | . . . . . . . . . . 130 587 337 Shots 16 | . . . . . . . . . . 3 8 5 Rammed 3 | . . 1 . . . . . . . . . 2 Targets Rammed 6 | . . 1 . . . . 1 . 1 . . 3 Kicked 3 | . . . . . . . 1 . 1 . . 1 Crushed . | . . . . . . . . . . . . . Highest Temperature 401 | . 180 241 183 215 58 254 336 401 260 263 299 335 Average Temperature 94 | . 47 129 111 105 27 117 109 98 81 85 96 119 Received Heat Transfer 3966 | . 96 551 198 227 19 64 121 217 41 117 817 1498 Effects 5 | . . . . . . . 1 2 . . 1 1 Shutdowns 3 | . . . . . . . . 2 . . . 1 Energy Bleed 2 | . . . . . . . 1 . . . 1 . Siege Activations 3 | . . . . 1 . . . . . . . 2 Total Turns 43 | . . . . 17 . . . . . . . 26 Longest Duration 17 | . . . . 17 . . . . . . . 16 Martial Activations . | . . . . . . . . . . . . . Shielding Activations . | . . . . . . . . . . . . . Robots Disrupted . | . . . . . . . . . . . . . Combat Hostiles . | . . . . . . . . . . . . . Robots Corrupted 38 | . 8 . 7 7 . 3 8 . . . 5 . Combat Hostiles 29 | . 3 . 7 7 . 3 7 . . . 2 . Parts Fried 69 | . 11 . 8 12 . 4 20 . . . 14 . Impact Corruptions 69 | . 14 . 12 12 4 6 17 . . . 4 . Robots Melted . | . . . . . . . . . . . . . Combat Hostiles . | . . . . . . . . . . . . . Parts Melted 11 | . . 3 1 . 1 5 . 1 . . . . Heat Transferred 5334 | . 457 1470 . 150 410 590 840 736 322 222 137 . Parts Sabotaged 6 | . . . . . . . . 2 . . . 4 Parts Stolen 6 | . . . . . . . . . . . 6 . Parts Stripped . | . . . . . . . . . . . . . Power Chain Reactions 1 | . 1 . . . . . . . . . . . Alert | -11 -10 -10 -7 -5 -4 -4 -4 -4 -3 -3 -3 -2 ------- Run | Yrd Mat Sub Scr Fac Fac Upp Upp War Pro Res Tes Res Maximum Alert Level 5 | . . . . . . . . . . 2 5 5 Low Security (%) 44 | . 100 . . 100 100 . . . . 58 . . Level 1 7 | . . . . . . . . . . 22 16 . Level 2 14 | . . . . . . . . . . 18 38 . Level 3 3 | . . . . . . . . . . . 12 . Level 4 14 | . . . . . . . . . . . 16 46 Level 5 5 | . . . . . . . . . . . 16 . High Security 11 | . . . . . . . . . . . . 53 Max Security . | . . . . . . . . . . . . . Peak Influence 2681 | . 125 . . 160 106 . . . . 664 2380 2681 Initial 1325 | . . . . . 72 . . . . . 369 1325 Average 719 | . 85 . . 38 71 . . . . 195 946 1829 Influence Increases 8202 | . 389 191 . 418 104 255 350 775 140 881 2689 2010 Destroy 0b10 Robot/C 4420 | . 240 180 . 220 40 220 320 680 120 400 1480 520 Destroy 0b10 Robot/NC 240 | . 45 . . 5 5 . . 5 . 50 115 15 Destroy Leader 510 | . 44 10 . 42 12 20 30 . 20 52 170 110 Allied During Kill 38 | . . 1 . 19 . . . . . . 4 14 Successful Hack 107 | . 19 . . . 28 . . . . 5 . 55 Disable Machine 375 | . 15 . . 30 15 . . . . 60 180 75 Destroy Structure 1748 | . 11 . . 12 4 . . . . 180 620 921 Partial Spotted 15 | . . . . . . . . . . . . 15 Lose Combat Pursuer 615 | . 15 . . 90 . 15 . 90 . . 120 285 Miscellaneous 134 | . . . . . . . . . . 134 . . Influence Decreases 5541 | . 328 181 71 270 226 259 236 317 734 225 989 1705 Entered New Map 2240 | . . 30 71 . 76 10 5 136 594 . 287 1031 Time Decay 2463 | . 298 131 . 212 150 249 221 161 120 165 542 214 Lost Part 530 | . 30 20 . . . . 10 20 20 60 80 290 Lost Ally 158 | . . . . 58 . . . . . . 80 20 Purge Threat 150 | . . . . . . . . . . . . 150 Squads Dispatched 51 | . 2 . . 4 2 . 1 . . 4 19 19 Investigation 11 | . 1 . . 2 1 . 1 . . 2 2 2 Extermination 5 | . . . . 1 . . . . . 1 3 . Reinforcement 17 | . 1 . . 1 1 . . . . 1 10 3 Assault 18 | . . . . . . . . . . . 4 14 Garrison . | . . . . . . . . . . . . . Intercept . | . . . . . . . . . . . . . Searches Triggered . | . . . . . . . . . . . . . Construction Impeded 7 | . . . . . . . . . . 1 5 1 Haulers Reinforced 1 | . . . . . 1 . . . . . . . Active Scanning Responses . | . . . . . . . . . . . . . Cargo Convoy Interrupts 1 | . . . . . . . . . . 1 . . Stealth | -11 -10 -10 -7 -5 -4 -4 -4 -4 -3 -3 -3 -2 --------- Run | Yrd Mat Sub Scr Fac Fac Upp Upp War Pro Res Tes Res Distress Signals 11 | . 3 . . . 1 . . 1 . 1 4 1 Communications Jammed 1 | . . . . 1 . . . . . . . . Distress Signals . | . . . . . . . . . . . . . Times Spotted 454 | . 24 23 29 16 4 12 16 113 7 29 93 88 Peak Tracking Total 32 | . 7 3 8 4 2 4 7 18 2 13 11 32 Tactical Retreats 27 | . 1 . . 4 . 1 . 4 . . 7 10 Traps | -11 -10 -10 -7 -5 -4 -4 -4 -4 -3 -3 -3 -2 ------- Run | Yrd Mat Sub Scr Fac Fac Upp Upp War Pro Res Tes Res Traps Triggered 5 | . 1 . . . 1 . . . . . 1 2 Indirectly . | . . . . . . . . . . . . . Trap Hack Attempts . | . . . . . . . . . . . . . Triggered . | . . . . . . . . . . . . . Disarmed . | . . . . . . . . . . . . . Reprogrammed . | . . . . . . . . . . . . . Reused 2 | . . 2 . . . . . . . . . . Traps Extracted . | . . . . . . . . . . . . . Installed 2 | . . 2 . . . . . . . . . . Triggered . | . . . . . . . . . . . . . Most Traps Carried 2 | . . 2 . . . . . . . . . . Machines | -11 -10 -10 -7 -5 -4 -4 -4 -4 -3 -3 -3 -2 ---------- Run | Yrd Mat Sub Scr Fac Fac Upp Upp War Pro Res Tes Res Machines Disabled 32 | . 1 . 2 2 1 . . 1 . 4 16 5 Max in Single Turn 2 | . 1 . 1 1 1 . . 1 . 2 2 1 Machines Repaired . | . . . . . . . . . . . . . Machines Dismantled . | . . . . . . . . . . . . . Machines Sabotaged . | . . . . . . . . . . . . . Overloaded Fab Kills . | . . . . . . . . . . . . . Hacking | -11 -10 -10 -7 -5 -4 -4 -4 -4 -3 -3 -3 -2 --------- Run | Yrd Mat Sub Scr Fac Fac Upp Upp War Pro Res Tes Res Machines Accessed 29 | . 4 1 1 5 3 . 1 2 . 2 7 3 Terminals 16 | . 4 . . 3 2 . 1 . . . 4 2 Fabricators 3 | . . . . 1 . . . . . 1 1 . Repair Stations 1 | . . . . . . . . . . . 1 . Recycling Units 4 | . . . . 1 1 . . . . 1 . 1 Scanalyzers 1 | . . . . . . . . . . . 1 . Garrison Access . | . . . . . . . . . . . . . Total Hacks 88 | . 16 5 7 19 9 . 3 2 . 4 14 9 Successful 44 | . 10 5 7 7 2 . 3 2 . 2 1 5 Failed 44 | . 6 . . 12 7 . . . . 2 13 4 Catastrophic 12 | . 1 . . 3 1 . . . . . 5 2 Database Lockouts . | . . . . . . . . . . . . . Manual 29 | . 6 . . 2 5 . . . . 1 8 7 Terminals 49 | . 16 . . 11 5 . 3 . . . 8 6 Fabricators 8 | . . . . 3 . . . . . 3 2 . Repair Stations 3 | . . . . . . . . . . . 3 . Recycling Units 13 | . . . . 5 4 . . . . 1 . 3 Scanalyzers 1 | . . . . . . . . . . . 1 . Garrison Access . | . . . . . . . . . . . . . Terminal Hacks 37 | . 9 5 7 3 2 . 3 2 . . 1 5 Record 9 | . . 5 . . . . 3 1 . . . . Robot Schematic 1 | . . . . 1 . . . . . . . . Robot Analysis 7 | . . . 7 . . . . . . . . . Prototype ID Bank 2 | . 1 . . 1 . . . . . . . . Open Door 2 | . . . . . . . . 1 . . 1 . Level Access Points 1 | . 1 . . . . . . . . . . . Branch Access Points 1 | . . . . . . . . . . . . 1 Emergency Access Points 1 | . . . . . 1 . . . . . . . Recycling Unit Index 1 | . 1 . . . . . . . . . . . Alert Level 3 | . 1 . . 1 . . . . . . . 1 Unreport Threat 1 | . . . . . . . . . . . . 1 Locate Traps 3 | . 2 . . . 1 . . . . . . . Patrol Status 1 | . . . . . . . . . . . . 1 Registered Prototypes 1 | . . . . . . . . . . . . 1 Zone Layout 3 | . 3 . . . . . . . . . . . Fabricator Hacks 3 | . . . . 2 . . . . . 1 . . Network Status 1 | . . . . 1 . . . . . . . . Build 2 | . . . . 1 . . . . . 1 . . Repair Station Hacks . | . . . . . . . . . . . . . Recycling Unit Hacks 2 | . . . . 2 . . . . . . . . Report Inventory 1 | . . . . 1 . . . . . . . . Retrieve Components 1 | . . . . 1 . . . . . . . . Scanalyzer . | . . . . . . . . . . . . . Garrison Access Hacks . | . . . . . . . . . . . . . Unauthorized Hacks 2 | . 1 . . . . . . . . 1 . . Terminals 1 | . 1 . . . . . . . . . . . Sabotage 1 | . 1 . . . . . . . . . . . Fabricators . | . . . . . . . . . . . . . Repair Stations . | . . . . . . . . . . . . . Recycling Units 1 | . . . . . . . . . . 1 . . Fedlink 1 | . . . . . . . . . . 1 . . Scanalyzers . | . . . . . . . . . . . . . Garrison Access . | . . . . . . . . . . . . . Data Cores Recovered 1 | . . . . . . . . . . . . 1 Used . | . . . . . . . . . . . . . Hacking Detections 24 | . 4 . . 5 3 . 1 . . 1 7 3 Full Trace Events 11 | . 2 . . 2 1 . 1 . . 1 2 2 Feedback Events 1 | . . . . . . . . . . . 1 . Corruption 1 | . . . . . . . . . . . 1 . Feedback Blocked 1 | . . . . 1 . . . . . . . . Robot Schematics Acquired 7 | . . . . 1 . . . . . . 6 . Robots Built 3 | . . . . 3 . . . . . . . . Authchips . | . . . . . . . . . . . . . Time 76 | . . . . 76 . . . . . . . . Total Robot Build Rating 15 | . . . . 15 . . . . . . . . Part Schematics Acquired 17 | . . . . . . . . . . . 17 . Parts Built . | . . . . . . . . . . . . . Authchips . | . . . . . . . . . . . . . Time 139 | . . . . . . . . . . 139 . . Total Part Build Rating . | . . . . . . . . . . . . . Part Studies Acquired . | . . . . . . . . . . . . . Parts Repaired . | . . . . . . . . . . . . . Time . | . . . . . . . . . . . . . Parts Recycled . | . . . . . . . . . . . . . Recycled Matter . | . . . . . . . . . . . . . Retrieved Matter . | . . . . . . . . . . . . . Retrieved Components 3 | . . . . 3 . . . . . . . . Parts Scanalyzed . | . . . . . . . . . . . . . Part Schematics Acquired . | . . . . . . . . . . . . . Parts Damaged . | . . . . . . . . . . . . . Bothacking | -11 -10 -10 -7 -5 -4 -4 -4 -4 -3 -3 -3 -2 ------------ Run | Yrd Mat Sub Scr Fac Fac Upp Upp War Pro Res Tes Res Used RIF Installer . | . . . . . . . . . . . . . Robots Hacked . | . . . . . . . . . . . . . Non-combat . | . . . . . . . . . . . . . Combat . | . . . . . . . . . . . . . Robot Hacks Applied . | . . . . . . . . . . . . . Relay Couplers Released . | . . . . . . . . . . . . . Fabnet Peak Effective % . | . . . . . . . . . . . . . Robots Rewired 1 | . . . . . . . . . . . 1 . Allies Hacked 3 | . . . . . . . . . . . 3 . Hacks Repelled . | . . . . . . . . . . . . . Allies | -11 -10 -10 -7 -5 -4 -4 -4 -4 -3 -3 -3 -2 -------- Run | Yrd Mat Sub Scr Fac Fac Upp Upp War Pro Res Tes Res Total Allies 10 | . . 1 . 3 . . . . . . 5 1 Largest Group 4 | . . 1 . 3 . . . . . . 4 1 Highest-Rated Group 168 | . . 90 . 87 . . . . . . 168 99 Highest-Rated Ally 113 | . . 90 . 29 . . . . . . 113 99 Initial UFD Resources 58 | . . . . 39 41 41 41 41 44 44 54 58 Total Orders . | . . . . . . . . . . . . . Ally Attacks 42 | . . 4 . 15 . . . . . . 10 13 Total Damage 1033 | . . 51 . 155 . . . . . . 255 572 Kills 2 | . . 1 . 1 . . . . . . . . Allies Corrupted 4 | . . . . . . . . . . . 4 . Allies Melted 9 | . . . 8 . . . . 1 . . . . X0-1V1 Amusement Gains 358 | . 8 . 95 5 10 . . 60 . 78 50 52 Good Acts 101 | . . 34 1 7 3 5 8 5 2 1 19 16 Bad Acts 50 | . . 37 . . . . . 3 . 2 6 2 Intel | -11 -10 -10 -7 -5 -4 -4 -4 -4 -3 -3 -3 -2 ------- Run | Yrd Mat Sub Scr Fac Fac Upp Upp War Pro Res Tes Res Active Infowar (turns) 4936 | . 605 . . 109 1 . 562 337 560 393 1557 812 Optics 2380 | . . . . . . . . . . 55 1557 768 Terrain 1826 | . . . . . . . 562 337 560 367 . . Structural 605 | . 605 . . . . . . . . . . . Traps 478 | . . . . . . . . . . 349 85 44 Jamming 110 | . . . . 109 1 . . . . . . . Robot Analysis Total 7 | . . . 7 . . . . . . . . . Derelict Logs Recovered 4 | . . 2 . . . 1 1 . . . . . Drone Launches . | . . . . . . . . . . . . . Drone Recoveries . | . . . . . . . . . . . . . Exploration | -11 -10 -10 -7 -5 -4 -4 -4 -4 -3 -3 -3 -2 ------------- Run | Yrd Mat Sub Scr Fac Fac Upp Upp War Pro Res Tes Res Turns Passed 11038 | . 706 1694 1186 890 307 862 647 1196 605 393 1557 995 Spaces Moved 7243 | 1 695 1178 766 548 231 631 402 619 455 233 777 707 Core 250 | . . . 2 . . . . . . . . 248 Treads 118 | . . . . 118 . . . . . . . . Legs 4360 | 1 89 . 146 430 231 631 402 619 455 233 777 346 Wheels 1568 | . . 950 618 . . . . . . . . . Hover 834 | . 606 228 . . . . . . . . . . Flight 113 | . . . . . . . . . . . . 113 Fastest Speed 32 | 120 56 56 100 105 116 116 126 120 120 120 115 32 Average Speed 109 | 120 64 96 123 121 116 123 126 126 120 120 119 92 Slowest Speed 450 | 120 180 180 450 175 116 126 126 202 120 120 186 190 Overloaded Moves . | . . . . . . . . . . . . . Propulsion Burnouts . | . . . . . . . . . . . . . Robots Hopped 4 | . . . . . . . . . . . . 4 Potential Cave-ins . | . . . . . . . . . . . . . Cave-ins Triggered . | . . . . . . . . . . . . . Exploration Rate (%) 47 | 2 92 71 39 16 9 73 60 76 60 12 81 30 Regions Visited 12 Branch Regions 7 Pre-discovered Areas 4 | . . 3 . . . . 1 . . . . . Known Exits Taken 6 | . . . 1 1 1 . . 1 1 . 1 . Unknown Exits Taken 6 | 1 1 1 . . . 1 1 . . 1 . . Scrap Searched 10 | . . 4 . . . 4 1 . 1 . . . Spaces Dug 84 | . 6 2 . 2 1 . 1 . . 2 67 3 Terrain Destroyed 1099 | . 10 2 2 6 2 5 16 84 7 95 491 379 Melee 21 | . 6 2 . . . . . . . 2 8 3 Projectile 57 | . . . 2 6 2 5 16 8 7 2 9 . AOE 1011 | . 4 . . . . . . 76 . 91 465 375 Terrain Rammed . | . . . . . . . . . . . . . Walls Destroyed . | . . . . . . . . . . . . . Machines Disabled . | . . . . . . . . . . . . . Actions | -11 -10 -10 -7 -5 -4 -4 -4 -4 -3 -3 -3 -2 --------- Run | Yrd Mat Sub Scr Fac Fac Upp Upp War Pro Res Tes Res Total 9440 | . 839 1571 986 738 253 693 485 972 492 311 1158 942 Wait 1039 | . 41 225 159 112 1 25 8 240 15 23 77 113 Move 7223 | . 694 1177 765 547 230 630 401 618 454 232 776 699 Hop 4 | . . . . . . . . . . . . 4 Pick Up 87 | . 12 9 5 7 2 4 8 18 . 7 11 4 Fast Attach 115 | . 8 12 10 17 2 1 1 5 1 5 30 23 Attach 66 | . 2 4 2 2 1 . 8 14 . 12 8 13 Detach 64 | . 2 2 4 8 . . 5 12 . 8 13 10 Swap 71 | . 3 7 4 7 . 2 1 11 3 3 27 3 Drop 112 | . 15 13 14 10 3 7 3 18 . 3 23 3 Fire 522 | . 26 112 23 28 14 24 49 35 16 15 141 39 Melee 117 | . 36 7 . . . . . 1 . 3 42 28 Ram 3 | . . 1 . . . . . . . . . 2 Kick 3 | . . . . . . . 1 . 1 . . 1 Crush . | . . . . . . . . . . . . . Escape Stasis . | . . . . . . . . . . . . . Rewire 12 | . . . . . . . . . 2 . 10 . Trap 2 | . . 2 . . . . . . . . . . Miscellaneous . | . . . . . . . . . . . . . Route ------- -11/Scrapyard -10/Materials (discovered 5 exits: *Mat x3 / [*Min] / *Sub) -10/Subcaves (discovered 3 exits: [*Mat] / Rec / *Scr) -7/Scraptown (discovered 2 exits: *Fac x2) -5/Factory (discovered 2 exits: *Fac x2) -4/Factory -4/Upper Caves -4/Upper Caves (discovered 2 exits: Res / *War) -4/Warlord -3/Proximity Caves -3/Research -3/Testing -2/Research (discovered 2 exits: Qua x2) History --------- Turn | Location | Event 1 | -11/Scrapyard | Discovered new exit (range 0) 1 | -11/Scrapyard | Entered Materials 175 | -10/Materials | Discovered new exit (range 5) 259 | -10/Materials | Identified exit to Materials 262 | -10/Materials | Discovered new exit (range 16) 337 | -10/Materials | Build established: Mutant 499 | -10/Materials | Core integrity fell below 50% 535 | -10/Materials | Lost 3 parts (1p2n) 700 | -10/Materials | Discovered new exit (range 7) 703 | -10/Materials | Prayed at D.C.S.S. Altar Unit 707 | -10/Materials | Entered Subcaves 708 | -10/Subcaves | Approached by a straggling Scientist 751 | -10/Subcaves | Visited Clippyterm 753 | -10/Subcaves | Learned location of Section 7 (-2) 753 | -10/Subcaves | Learned Factory trap positions 846 | -10/Subcaves | Heat dissipation permanently improved by X0-1V1 (+15; -75 max core) 915 | -10/Subcaves | Discovered new exit (range 6) 943 | -10/Subcaves | Core integrity fell below 20% 962 | -10/Subcaves | Core integrity restored by X0-1V1 (+26) 970 | -10/Subcaves | Discovered new exit (range 8) 994 | -10/Subcaves | Propulsion slot count permanently improved by X0-1V1 (+1) 1002 | -10/Subcaves | Curiously followed by a Cobbler waking with a query about "LVR3C" 1151 | -10/Subcaves | Identified exit to Recycling 1151 | -10/Subcaves | X0-1V1 revealed exit location to -7/Recycling 1258 | -10/Subcaves | Core integrity restored by X0-1V1 (+45) 1299 | -10/Subcaves | Shifting Twisted Machinery released Sub. Monowheel 1471 | -10/Subcaves | Core integrity restored by X0-1V1 (+45) 1508 | -10/Subcaves | Core integrity permanently improved by X0-1V1 (+350) 1513 | -10/Subcaves | X0-1V1 sent hostile S-10 Pest (x3) 1521 | -10/Subcaves | X0-1V1 sent allied H-61 Shepherd (x1) 1538 | -10/Subcaves | X0-1V1 activates XOMVISION 1558 | -10/Subcaves | X0-1V1 rewrote H-61 Shepherd IFF filter 1572 | -10/Subcaves | X0-1V1 mutated your Propulsion slot to Power slot 1574 | -10/Subcaves | X0-1V1 tapped a No Entrance sign 1634 | -10/Subcaves | X0-1V1 mutated your Utility slot to Propulsion slot 1684 | -10/Subcaves | X0-1V1 activates XOMVISION 1695 | -10/Subcaves | X0-1V1 mutated your Weapon slot to Utility slot 1749 | -10/Subcaves | X0-1V1 mutated your Propulsion slot to Utility slot 1762 | -10/Subcaves | X0-1V1 sent you into danger 1768 | -10/Subcaves | Learned location of Zion (-6) 1768 | -10/Subcaves | Met a Zionite searching for "candidates" 1839 | -10/Subcaves | Learned location of Storage (-7) 1859 | -10/Subcaves | Shifting Twisted Machinery released Scrap Shield 1859 | -10/Subcaves | Shifting Twisted Machinery released Flamer 2226 | -10/Subcaves | X0-1V1 mutated your Utility slot to Propulsion slot 2256 | -10/Subcaves | X0-1V1 activates XOMVISION 2325 | -10/Subcaves | X0-1V1 mutated your Propulsion slot to Weapon slot 2330 | -10/Subcaves | Forcibly received Sfc. Transmogifier from X0-1V1 2340 | -10/Subcaves | X0-1V1 sent hostile S-10 Pest (x4) 2362 | -10/Subcaves | System corruption reached 10% 2379 | -10/Subcaves | Core integrity restored by X0-1V1 (+131) 2401 | -10/Subcaves | Entered Scraptown 2481 | -7/Scraptown | Visited UFD Registry 2481 | -7/Scraptown | Registered with UFD as "Prototube" 2555 | -7/Scraptown | Visited Observation Area 2565 | -7/Scraptown | Visited Modified Component R&D 2587 | -7/Scraptown | Visited Analyses Database 2613 | -7/Scraptown | Visited Junk Cannon Lab 2619 | -7/Scraptown | Found Prototype Special Weapon 2619 | -7/Scraptown | Identified Junk Cannon 2643 | -7/Scraptown | Visited Scrapoid Pod Storage 2669 | -7/Scraptown | Visited Scrap Suit Storage 2712 | -7/Scraptown | Visited Derelict Rescue Squad 2722 | -7/Scraptown | Found DRS Beacon 2767 | -7/Scraptown | Visited Junk Repository 2813 | -7/Scraptown | Visited Chapter 10 2853 | -7/Scraptown | Visited A0-MCA Data Center 2860 | -7/Scraptown | Given a B- rating by A0-MCA 2863 | -7/Scraptown | Found A0-MCA's Component Scanner 2927 | -7/Scraptown | Met Optimus 2927 | -7/Scraptown | Accepted into 0bPrime 3208 | -7/Scraptown | Discovered new exit (range 5) 3242 | -7/Scraptown | Civil war broke out across Scraptown 3314 | -7/Scraptown | Lost 7 allies 3318 | -7/Scraptown | Identified exit to Factory 3379 | -7/Scraptown | Lost 3 allies 3403 | -7/Scraptown | Found Tri-treads 3586 | -7/Scraptown | Found Prototype Processor 3587 | -7/Scraptown | Entered Factory 3587 | -5/Factory | Evolved 10 slots: Propulsion x3, Utility x6, Weapon x1 3588 | -5/Factory | Loaded intel: 115 trap records 3618 | -5/Factory | X0-1V1 foreshadows a heat wave 3661 | -5/Factory | Identified Expert System 3733 | -5/Factory | Ambient heat levels rising (+10) 3782 | -5/Factory | Fabricated G-50 Soldier (x3) 3864 | -5/Factory | Ambient heat levels rising (+10) 3956 | -5/Factory | Identified exit to Factory 3956 | -5/Factory | X0-1V1 revealed exit location to -4/Factory 4016 | -5/Factory | Ambient heat levels falling (-10) 4142 | -5/Factory | Ambient heat levels falling (-10) 4171 | -5/Factory | System corruption reached 10% 4193 | -5/Factory | Lost 3 allies 4262 | -5/Factory | Found Hvy. Reflective Plating 4282 | -5/Factory | X0-1V1 sent you to a vault 4301 | -5/Factory | Found PL-3XN's Ring of Power 4383 | -5/Factory | Discovered exit to Factory (range 15) 4477 | -5/Factory | Entered another Factory area 4477 | -4/Factory | Evolved 2 slots: Propulsion x1, Utility x1 4514 | -4/Factory | X0-1V1 activates XOMVISION 4526 | -4/Factory | Expert System configures itself against Grunt targets 4605 | -4/Factory | Build established: Tank 4671 | -4/Factory | Identified exit to Upper Caves 4671 | -4/Factory | X0-1V1 revealed exit location to -4/Upper Caves 4784 | -4/Factory | Entered Upper Caves 4862 | -4/Upper Caves | Encountered a Warlord checkpoint 4985 | -4/Upper Caves | Found DCF Scrap (11 items) 5268 | -4/Upper Caves | X0-1V1 activates XOMVISION 5384 | -4/Upper Caves | Attracted the attention of an 0b10 checkpoint 5495 | -4/Upper Caves | Discovered new exit (range 11) 5646 | -4/Upper Caves | Entered another Upper Caves area 5698 | -4/Upper Caves | X0-1V1 activates XOMVISION 5703 | -4/Upper Caves | Found Exp. Core Analyzer 6043 | -4/Upper Caves | Attracted the attention of an 0b10 base 6081 | -4/Upper Caves | Build established: Derelict-Tank 6091 | -4/Upper Caves | Identified exit to Research 6091 | -4/Upper Caves | X0-1V1 revealed exit location to -3/Research 6094 | -4/Upper Caves | Destroyed 7 combat bots 6138 | -4/Upper Caves | Learned Armory stockpile data 6279 | -4/Upper Caves | Discovered new exit (range 9) 6293 | -4/Upper Caves | Entered Warlord 6525 | -4/Warlord | Visited the Vortex Lab 6532 | -4/Warlord | Warlord's base attacked by MAIN.C 6534 | -4/Warlord | Found Vortex Cannon 6537 | -4/Warlord | Found Vortex Cannon 6682 | -4/Warlord | Identified exit to Proximity Caves 6682 | -4/Warlord | X0-1V1 revealed exit location to -3/Proximity Caves 6754 | -4/Warlord | Found Vortex Chain Reactor 6792 | -4/Warlord | X0-1V1 activates XOMVISION 6838 | -4/Warlord | Rebuked by Warlord 6882 | -4/Warlord | Warlord forces counterattacked 7078 | -4/Warlord | X0-1V1 sent hostile Wasp (x2) 7105 | -4/Warlord | Lost 15 allies 7173 | -4/Warlord | Build established: Derelict-Mutant 7191 | -4/Warlord | Found Hvy. Autocannon 7207 | -4/Warlord | Warlord base infiltrated, sounded retreat 7208 | -4/Warlord | Enhanced Grunt warped into view 7208 | -4/Warlord | Enhanced Grunt warped into view 7208 | -4/Warlord | Enhanced Grunt warped into view 7208 | -4/Warlord | Enhanced Demolisher warped into view 7208 | -4/Warlord | Enhanced Demolisher warped into view 7208 | -4/Warlord | Enhanced Demolisher warped into view 7212 | -4/Warlord | Spotted Executioner 7223 | -4/Warlord | Spotted Executioner 7241 | -4/Warlord | Found Corrupted Chain Missile Launcher 7249 | -4/Warlord | Spotted Executioner 7251 | -4/Warlord | Destroyed Executioner 7284 | -4/Warlord | Lost 3 allies 7296 | -4/Warlord | Spotted Executioner 7337 | -4/Warlord | Spotted Striker 7343 | -4/Warlord | Destroyed 12 combat bots 7378 | -4/Warlord | Spotted Striker 7391 | -4/Warlord | Spotted Executioner 7394 | -4/Warlord | Spotted Executioner 7402 | -4/Warlord | Spotted Executioner 7408 | -4/Warlord | Found Chain Missile Launcher 7423 | -4/Warlord | Spotted Executioner 7426 | -4/Warlord | Destroyed Executioner 7440 | -4/Warlord | Spotted Striker 7476 | -4/Warlord | Destroyed 15 combat bots 7489 | -4/Warlord | Entered Proximity Caves 7505 | -3/Proximity Caves | Lost 19 allies 7613 | -3/Proximity Caves | X0-1V1 activates XOMVISION 7709 | -3/Proximity Caves | Build established: Scavenger-Tank 7729 | -3/Proximity Caves | Core integrity restored by X0-1V1 (+242) 7944 | -3/Proximity Caves | System corruption reached 10% 8080 | -3/Proximity Caves | Discovered exit to Research (range 14) 8086 | -3/Proximity Caves | Spotted B-86 Titan 8094 | -3/Proximity Caves | Entered Research 8094 | -3/Research | Evolved 2 slots: Propulsion x1, Utility x1 8325 | -3/Research | X0-1V1 added 0b10 threat records associated with you (minor) 8379 | -3/Research | Loaded intel: 5 recycling unit locations 8412 | -3/Research | Cargo convoy interrupted 8432 | -3/Research | Found Prototype Processor 8432 | -3/Research | Identified Spectral Analyzer 8446 | -3/Research | Destroyed 10 combat bots 8449 | -3/Research | Discovered new exit (range 15) 8487 | -3/Research | Entered Testing 8497 | -3/Testing | Lost 5 parts (4u1w) 8530 | -3/Testing | Found Prototype Protection 8530 | -3/Testing | Identified SHELL Armor 8533 | -3/Testing | Found Prototype Protection 8533 | -3/Testing | Identified Lgt. Regenerative Plating 8536 | -3/Testing | Found Lgt. Regenerative Plating 8540 | -3/Testing | Found Prototype Protection 8540 | -3/Testing | Identified Hvy. Regenerative Plating 8717 | -3/Testing | Build established: Mutant 8834 | -3/Testing | X0-1V1 sent hostile S-43 Plague (x4) 8843 | -3/Testing | Scanned by Researcher 8868 | -3/Testing | X0-1V1 sent you to a vault 8908 | -3/Testing | P-80 Master assimilated allied Champion 8a 8915 | -3/Testing | System corruption reached 10% 8955 | -3/Testing | Lost 3 allies 9010 | -3/Testing | Found Prototype Device 9010 | -3/Testing | Identified 2N-1CE's Frost Array 9032 | -3/Testing | Found Prototype Device 9032 | -3/Testing | Identified AEGIS Remote Shield 9134 | -3/Testing | Found Prototype Launcher 9134 | -3/Testing | Identified Tactical Quantum Warhead 9144 | -3/Testing | Found Prototype Launcher 9144 | -3/Testing | Identified Adv. Micro-nuke Launcher 9175 | -3/Testing | Found Prototype Ballistic Gun 9175 | -3/Testing | Identified Hyp. Multirail 9193 | -3/Testing | X0-1V1 redirected Transport squads to designated parking area 9209 | -3/Testing | Found Spectral Analyzer 9559 | -3/Testing | Destroyed 7 combat bots 9629 | -3/Testing | Rewired PL-4TSHB5F442 9652 | -3/Testing | Identified exit to Research 9652 | -3/Testing | X0-1V1 revealed exit location to -2/Research 9696 | -3/Testing | X0-1V1 downgraded hostiles (x1) 9724 | -3/Testing | Destroyed 8 combat bots 9724 | -3/Testing | Adv. Myomer Leg reconfigured into Item Mimic 9737 | -3/Testing | First assault squad dispatched 9834 | -3/Testing | Destroyed 14 combat bots 9912 | -3/Testing | Found Prototype Device 9912 | -3/Testing | Identified Exp. Hardlight Generator 9925 | -3/Testing | Spotted PL-T0XIRFP9Q9 10044 | -3/Testing | Entered Research 10044 | -2/Research | Evolved 2 slots: Power x1, Utility x1 10114 | -2/Research | X0-1V1 redirected Transport squads to designated parking area 10133 | -2/Research | Spotted B-90 Cyclops 10191 | -2/Research | Build established: Scavenger-Mutant 10329 | -2/Research | X0-1V1 sent allied Striker (x1) 10361 | -2/Research | Destroyed B-90 Cyclops 10406 | -2/Research | Identified exit to Quarantine 10430 | -2/Research | Quantum Reactor reconfigured into Item Mimic 10502 | -2/Research | High security lockdown imminent 10535 | -2/Research | Destroyed 10 combat bots 10582 | -2/Research | High security lockdown engaged 10640 | -2/Research | Build established: Mutant 10764 | -2/Research | Spotted Striker 10764 | -2/Research | Spotted Striker 10782 | -2/Research | Destroyed Striker 10822 | -2/Research | Core integrity fell below 50% 10832 | -2/Research | Destroyed 8 combat bots 10844 | -2/Research | Core integrity fell below 20% 10867 | -2/Research | Spotted Executioner 10868 | -2/Research | X0-1V1 whisked you away to safety 10897 | -2/Research | Lost 22 parts (3p8n7u4w) 10970 | -2/Research | X0-1V1 activates XOMVISION 10997 | -2/Research | System corruption reached 10% 11001 | -2/Research | X0-1V1 whisked you away to safety 11039 | -2/Research | Destroyed by Y-72 Warden with Railgun Last Messages --------------- 10982_ X0-1V1: "I found some blueprints, how convenient!" (6 emergency access locations revealed). 10985_ System corrupted: Heat flow error (+229). 10995_ Triggered Ambush Trap. 10995_ B-74 Champion emerges from a hatch in the floor. 10995_ G-73 Enforcer emerges from a hatch in the floor. 10995_ X0-1V1 is amused. 10995_ X0-1V1's Piety Tracker destroyed. 10995_ X0-1V1 is mildly amused. 10996_ Gyrokinetic Inverter destroyed. 10996_ System corrupted by crushing effect (+5). 10996_ Knocked back. 11001_ X0-1V1: "You need a change of scenery." X0-1V1's Piety Tracker suddenly appears amidst shimmering waves of color. 11014_ Acquired X0-1V1's Piety Tracker. 11021_ Acquired Q-thruster. 11037_ X0-1V1: "I sense action potential over that way (Garrison Access located)." 11039_ Penetrated by Slug. 11039_ X0-1V1 howls with laughter! Map ----- +----------------------------------------------------+ | ####???????????????????????????????????????? | | ??????????????????????????????????????? | | ??????????????????????????????????????? | | ??????????????????????????????????????? | | ??????????????????????????????????????? | | ############+#####???????????????????????????????? | | ????????# #???????????????????????????????? | | ????????# #???????????????????????????????? | | ????????# #???????????????????????????????? | | ######### #???????????????????????????????? | | + #???????????????????????????????? | | #### == ! #???????????????????????????????? | | #??# = #???????????????????????????????? | | #??# #???????????????????????????????? | | ######??# #???????????????????????????????? | | ????????#+########???????????????????????????????? | | ????????# #??????????????????????????????????????? | | ######??# #???????????????????????#??????????????? | | ? ??# #?????????????????????? #??????????????? | | ? ?# #????????????????????? #??????????????? | | """ ?# #???????????????????? #??????????????? | | """ # #################### ######?????????? | | " """ # ?????????? | | " F" + ????????? | | " """ # ????????? | | " "" + @ Y ????????? | | " ?####+###########+########+????Y?Y????????? | | ??? ???????? "?????????????Y???????[?? | | ??# ?????? "???????????????????????? | | ??#** ???# ??????????????????????? | | #####???#** ?# ??????????????????????? | | ????????#* ## ?????????????????????? | | ????????# #? ?????????????????????? | | ????????##############?#####?????????????????????? | | | | | | | | | | | | | | | | | | | | | | | | | | | | | | | | | +----------------------------------------------------+ Best States ------------- Heat Dissipation 164 Coolant Potential 50 Energy Generation 59 Energy Capacity 1935 Matter Stores 1000 Matter Capacity 1000 Sight Range 28 Terrain Scan Range 18 Terrain Scan Density 10 Jamming Range 14 Armor Coverage 2400 Resistance: KI 30 Resistance: TH 25 Evasion (%) 70 Targeting Accuracy 56 Melee Accuracy 5 Target Analysis 8 Core Analysis 8 Armor Integrity Analysis 40 Recoil Reduction 5 Kinecelleration 40 Offensive Hacking 12 Defensive Hacking 12 Item Schematics ----------------- Exp. Power Amplifier | -3/Testing | Archive Imp. Matter Compressor | -3/Testing | Archive Exp. Focal Shield | -3/Testing | Archive Hvy. Hardcell Cannon | -3/Testing | Archive Cld. Nuclear Pulse Thruster | -3/Testing | Archive Imp. Matter Neutralizer | -3/Testing | Archive Neutron Cannon | -3/Testing | Archive Coolant Network | -3/Testing | Archive Molecular Scythe | -3/Testing | Archive Com. Particle Reactor | -3/Testing | Archive Lgt. Antimatter Cannon | -3/Testing | Archive Adv. Energy Well | -3/Testing | Archive Exp. Melee Analysis Suite | -3/Testing | Archive Mni. Smartbomb Launcher | -3/Testing | Archive Exp. Thermal Shield | -3/Testing | Archive Hellfire Missile Launcher | -3/Testing | Archive Fusion Reactor | -3/Testing | Archive Robot Schematics ------------------ I-36 Angel | -5/Factory | Hacked K-01 Serf | -3/Testing | Archive A-02 Transporter | -3/Testing | Archive R-10 Processor | -3/Testing | Archive S-43 Plague | -3/Testing | Archive D-63 Destroyer | -3/Testing | Archive R-06 Scavenger | -3/Testing | Archive Fabricated ------------ G-50 Soldier | x3 | -5/Factory | Preloaded Repaired ---------- Nothing Studied --------- None Alien Tech Used ----------------- None Achievements -------------- IP Theft Challenges ------------ None Game ------ Seed RegenerativeDeliveryTrident Manual? 0 Play Time 01:48:36 Cumulative 1336.5 hours Start 2026.07.06 @ 11:31:50 End 2026.07.06 @ 17:48:19 Sessions 9 Manual Loads 0 Difficulty Rogue Special Mode None Game No. 1638 Rogue 1354 Adventurer 124 Explorer 160 Win Type - Total 67 Types 52/0/9/4/1/0/0/1/0/0 Lore% 93 Gallery% 84 Achievement% 72 Wizard Run 0 Options --------- Layout 0 ASCII 0 Keyboard 1 Movement Numpad Keybinds 0 Fullscreen 2 Font 18/X11 Map View 76x50 Zoom Use 0% Tactical HUD 1 Map Filters NONE Filters NONE Steam 1 RUN: 2e010752-9876-462b-b903-f7a55efca5dc